[Event "*** Titled Tuesday Blitz"]
[Site "Chess.com"]
[Date "2020.12.29"]
[Round "9"]
[White "onnoelgersma"]
[Black "Kildepiotr"]
[Result "1-0"]
[WhiteElo "2446"]
[BlackElo "2607"]
[TimeControl "180+1"]
[EndTime "11:44:46 PST"]
[Termination "onnoelgersma won on time"]

1. Nf3 {[%clk 0:02:59.1]} 1... g6 {[%clk 0:02:59.8]} 2. e4 {[%clk 0:02:59.1]}
2... Bg7 {[%clk 0:03:00.4]} 3. d4 {[%clk 0:02:59.6]} 3... c6 {[%clk 0:03:01]} 4.
Nc3 {[%clk 0:02:59]} 4... d6 {[%clk 0:03:01.4]} 5. h3 {[%clk 0:02:59.6]} 5...
Nf6 {[%clk 0:03:01.4]} 6. Be2 {[%clk 0:02:58.2]} 6... O-O {[%clk 0:03:01.8]} 7.
O-O {[%clk 0:02:58.5]} 7... Nbd7 {[%clk 0:03:02.3]} 8. a4 {[%clk 0:02:52.8]}
8... e5 {[%clk 0:03:02.2]} 9. Be3 {[%clk 0:02:53.2]} 9... Re8 {[%clk 0:02:58.5]}
10. dxe5 {[%clk 0:02:46.8]} 10... dxe5 {[%clk 0:02:58.1]} 11. a5 {[%clk
0:02:46.1]} 11... Qe7 {[%clk 0:02:54.7]} 12. Nd2 {[%clk 0:02:33.2]} 12... Nc5
{[%clk 0:02:53]} 13. b4 {[%clk 0:01:42.4]} 13... Ne6 {[%clk 0:02:52.2]} 14. Qb1
{[%clk 0:01:42.9]} 14... Nd4 {[%clk 0:02:47.4]} 15. Bd3 {[%clk 0:01:42]} 15...
Nh5 {[%clk 0:02:39.3]} 16. b5 {[%clk 0:01:35.5]} 16... Be6 {[%clk 0:02:27.6]}
17. Nb3 {[%clk 0:00:44.9]} 17... c5 {[%clk 0:01:54]} 18. Bxd4 {[%clk 0:00:23.9]}
18... exd4 {[%clk 0:01:42.1]} 19. Nd5 {[%clk 0:00:23.6]} 19... Bxd5 {[%clk
0:01:37.9]} 20. exd5 {[%clk 0:00:24.5]} 20... Nf4 {[%clk 0:01:37.6]} 21. Qd1
{[%clk 0:00:17.9]} 21... Nxd5 {[%clk 0:01:30.7]} 22. Bc4 {[%clk 0:00:17.7]}
22... Nc3 {[%clk 0:01:29.5]} 23. Qf3 {[%clk 0:00:16.7]} 23... Rab8 {[%clk
0:01:00.9]} 24. b6 {[%clk 0:00:15.9]} 24... a6 {[%clk 0:00:55.4]} 25. g3 {[%clk
0:00:15.1]} 25... Rbc8 {[%clk 0:00:45.1]} 26. Rae1 {[%clk 0:00:14.5]} 26... Qd7
{[%clk 0:00:27.7]} 27. Rxe8+ {[%clk 0:00:13]} 27... Rxe8 {[%clk 0:00:26.1]} 28.
Nxc5 {[%clk 0:00:13.3]} 28... Qe7 {[%clk 0:00:21.3]} 29. Nxb7 {[%clk 0:00:12.9]}
29... Rc8 {[%clk 0:00:17.5]} 30. Nd6 {[%clk 0:00:12.3]} 30... Qxd6 {[%clk
0:00:13.8]} 31. Qxf7+ {[%clk 0:00:12.1]} 31... Kh8 {[%clk 0:00:14.2]} 32. b7
{[%clk 0:00:12.3]} 32... Rb8 {[%clk 0:00:13.5]} 33. Re1 {[%clk 0:00:12.6]} 33...
h5 {[%clk 0:00:11.5]} 34. Re8+ {[%clk 0:00:10.9]} 34... Kh7 {[%clk 0:00:12]} 35.
Rg8 {[%clk 0:00:08.2]} 35... Qe5 {[%clk 0:00:06.5]} 36. Bd3 {[%clk 0:00:05.5]}
1-0

[Event "*** Titled Tuesday Blitz"]
[Site "Chess.com"]
[Date "2020.12.29"]
[Round "9"]
[White "BogdanDeac"]
[Black "Grandelicious"]
[Result "1-0"]
[WhiteElo "3020"]
[BlackElo "2878"]
[TimeControl "180+1"]
[EndTime "11:44:47 PST"]
[Termination "BogdanDeac won by resignation"]

1. Nf3 {[%clk 0:03:00.9]} 1... d5 {[%clk 0:03:00.2]} 2. d4 {[%clk 0:03:00.4]}
2... Nf6 {[%clk 0:02:58.1]} 3. c4 {[%clk 0:03:00.9]} 3... c6 {[%clk 0:02:58.3]}
4. Nc3 {[%clk 0:02:59.7]} 4... dxc4 {[%clk 0:02:56.2]} 5. a4 {[%clk 0:02:58.6]}
5... e6 {[%clk 0:02:56.8]} 6. e3 {[%clk 0:02:57.7]} 6... c5 {[%clk 0:02:57.3]}
7. Bxc4 {[%clk 0:02:58]} 7... cxd4 {[%clk 0:02:57.5]} 8. Nxd4 {[%clk 0:02:57.3]}
8... Bb4 {[%clk 0:02:44.9]} 9. Qb3 {[%clk 0:02:42]} 9... Bc5 {[%clk 0:02:07.8]}
10. O-O {[%clk 0:02:38.8]} 10... Bxd4 {[%clk 0:02:05.6]} 11. exd4 {[%clk
0:02:37.7]} 11... O-O {[%clk 0:01:58.9]} 12. d5 {[%clk 0:01:51.2]} 12... exd5
{[%clk 0:01:53.2]} 13. Nxd5 {[%clk 0:01:51.3]} 13... Nxd5 {[%clk 0:01:48.6]} 14.
Bxd5 {[%clk 0:01:51]} 14... Nc6 {[%clk 0:01:49.3]} 15. Rd1 {[%clk 0:01:45.3]}
15... Qf6 {[%clk 0:01:33.9]} 16. Be3 {[%clk 0:00:53.5]} 16... h6 {[%clk
0:01:24.2]} 17. a5 {[%clk 0:00:46.1]} 17... Bg4 {[%clk 0:01:18.5]} 18. Rdc1
{[%clk 0:00:28.9]} 18... Rab8 {[%clk 0:01:06.5]} 19. Qa4 {[%clk 0:00:20.5]}
19... Be6 {[%clk 0:01:04.1]} 20. Bxe6 {[%clk 0:00:15.9]} 20... Qxe6 {[%clk
0:01:02.1]} 21. a6 {[%clk 0:00:16.3]} 21... b5 {[%clk 0:00:39.4]} 22. Qf4 {[%clk
0:00:15.8]} 22... Rbc8 {[%clk 0:00:30.4]} 23. h3 {[%clk 0:00:14.7]} 23... Ne7
{[%clk 0:00:20.7]} 24. Bxa7 {[%clk 0:00:11.5]} 24... Rxc1+ {[%clk 0:00:18]} 25.
Qxc1 {[%clk 0:00:12]} 25... Ra8 {[%clk 0:00:14.8]} 26. Qe3 {[%clk 0:00:10.4]}
26... Qd7 {[%clk 0:00:06.6]} 27. Bc5 {[%clk 0:00:08.7]} 27... Nd5 {[%clk
0:00:04.6]} 28. Qd4 {[%clk 0:00:07]} 28... Qc6 {[%clk 0:00:04.1]} 29. a7 {[%clk
0:00:07.2]} 29... g5 {[%clk 0:00:03.8]} 30. g3 {[%clk 0:00:06]} 30... Re8 {[%clk
0:00:03.5]} 31. b4 {[%clk 0:00:05]} 31... Nc7 {[%clk 0:00:02]} 32. Qd6 {[%clk
0:00:04.5]} 32... Qb7 {[%clk 0:00:02.3]} 33. Qd7 {[%clk 0:00:04.2]} 33... Re6
{[%clk 0:00:02.3]} 34. a8=Q+ {[%clk 0:00:03.9]} 34... Nxa8 {[%clk 0:00:02.6]}
35. Qxb7 {[%clk 0:00:03.5]} 35... Re1+ {[%clk 0:00:03.5]} 36. Rxe1 {[%clk
0:00:02.9]} 36... Kh7 {[%clk 0:00:04.4]} 1-0

[Event "*** Titled Tuesday Blitz"]
[Site "Chess.com"]
[Date "2020.12.29"]
[Round "9"]
[White "Arseniy_Nesterov"]
[Black "MokshanovAlexey"]
[Result "1-0"]
[WhiteElo "2790"]
[BlackElo "2637"]
[TimeControl "180+1"]
[EndTime "11:44:47 PST"]
[Termination "Arseniy_Nesterov won by resignation"]

1. d4 {[%clk 0:03:00.9]} 1... d5 {[%clk 0:02:59.6]} 2. c4 {[%clk 0:03:01.3]}
2... e6 {[%clk 0:02:59.6]} 3. Nf3 {[%clk 0:03:01.3]} 3... Nf6 {[%clk 0:02:58.8]}
4. Nc3 {[%clk 0:03:01.4]} 4... c6 {[%clk 0:02:58.3]} 5. e3 {[%clk 0:03:01.2]}
5... Nbd7 {[%clk 0:02:58.2]} 6. Qc2 {[%clk 0:03:01.2]} 6... Bd6 {[%clk
0:02:57.4]} 7. b3 {[%clk 0:03:01]} 7... O-O {[%clk 0:02:53.4]} 8. Be2 {[%clk
0:03:00.9]} 8... b6 {[%clk 0:02:49.4]} 9. O-O {[%clk 0:03:00]} 9... Bb7 {[%clk
0:02:49.5]} 10. Bb2 {[%clk 0:02:56.5]} 10... c5 {[%clk 0:02:49]} 11. cxd5 {[%clk
0:02:52.4]} 11... Nxd5 {[%clk 0:02:47.2]} 12. Nxd5 {[%clk 0:02:50]} 12... Bxd5
{[%clk 0:02:47.2]} 13. e4 {[%clk 0:02:42.8]} 13... Bb7 {[%clk 0:02:44.3]} 14.
Rad1 {[%clk 0:02:24.6]} 14... Rc8 {[%clk 0:02:17]} 15. d5 {[%clk 0:01:48.1]}
15... e5 {[%clk 0:01:29.4]} 16. Nd2 {[%clk 0:01:43.1]} 16... Qe7 {[%clk
0:01:23.6]} 17. Nc4 {[%clk 0:01:40.4]} 17... Rfe8 {[%clk 0:01:07.3]} 18. a4
{[%clk 0:01:36.7]} 18... Bb8 {[%clk 0:00:45.1]} 19. Bg4 {[%clk 0:01:26.3]} 19...
Red8 {[%clk 0:00:44.2]} 20. Qc3 {[%clk 0:01:00.4]} 20... Ba6 {[%clk 0:00:44.2]}
21. Rfe1 {[%clk 0:00:55.4]} 21... Bd6 {[%clk 0:00:40.8]} 22. Nxd6 {[%clk
0:00:34.6]} 22... Qxd6 {[%clk 0:00:39.3]} 23. f4 {[%clk 0:00:33.3]} 23... f6
{[%clk 0:00:26.4]} 24. fxe5 {[%clk 0:00:28.8]} 24... Qxe5 {[%clk 0:00:18]} 25.
Qxe5 {[%clk 0:00:26.1]} 25... fxe5 {[%clk 0:00:17.6]} 26. Bxd7 {[%clk 0:00:20]}
26... Rxd7 {[%clk 0:00:17.3]} 27. Bxe5 {[%clk 0:00:20.2]} 27... c4 {[%clk
0:00:17.8]} 28. b4 {[%clk 0:00:14.8]} 28... c3 {[%clk 0:00:15.6]} 29. b5 {[%clk
0:00:13.3]} 29... Bb7 {[%clk 0:00:15.9]} 30. Rc1 {[%clk 0:00:12.7]} 30... c2
{[%clk 0:00:15.9]} 31. Re2 {[%clk 0:00:12.9]} 31... Rc4 {[%clk 0:00:15.2]} 32.
Rcxc2 {[%clk 0:00:10.3]} 32... Rxa4 {[%clk 0:00:14.8]} 33. h3 {[%clk 0:00:09.9]}
33... h6 {[%clk 0:00:13.5]} 34. Bg3 {[%clk 0:00:09.6]} 34... Kh7 {[%clk
0:00:13.6]} 35. Kh2 {[%clk 0:00:09.3]} 35... Re7 {[%clk 0:00:13.1]} 36. d6
{[%clk 0:00:07]} 36... Rexe4 {[%clk 0:00:12.1]} 37. Rxe4 {[%clk 0:00:06.1]}
37... Rxe4 {[%clk 0:00:13]} 38. Rc7 {[%clk 0:00:06]} 1-0

[Event "*** Titled Tuesday Blitz"]
[Site "Chess.com"]
[Date "2020.12.29"]
[Round "9"]
[White "Mikhail_Golubev"]
[Black "Harry_Rakkel"]
[Result "0-1"]
[WhiteElo "2510"]
[BlackElo "2643"]
[TimeControl "180+1"]
[EndTime "11:44:47 PST"]
[Termination "Harry_Rakkel won on time"]

1. e4 {[%clk 0:03:00.9]} 1... c5 {[%clk 0:02:59.1]} 2. Nf3 {[%clk 0:02:59.4]}
2... e6 {[%clk 0:02:59.5]} 3. d4 {[%clk 0:02:59.1]} 3... cxd4 {[%clk 0:03:00.4]}
4. Nxd4 {[%clk 0:02:59.1]} 4... Nc6 {[%clk 0:03:00.8]} 5. Nc3 {[%clk 0:02:59]}
5... Qc7 {[%clk 0:03:01.2]} 6. Be3 {[%clk 0:02:58.4]} 6... a6 {[%clk 0:03:00.8]}
7. a3 {[%clk 0:02:57.3]} 7... Nf6 {[%clk 0:02:59.2]} 8. f4 {[%clk 0:02:55.3]}
8... d6 {[%clk 0:02:51.8]} 9. Qf3 {[%clk 0:02:53.4]} 9... Be7 {[%clk 0:02:43.4]}
10. Bd3 {[%clk 0:02:52]} 10... Bd7 {[%clk 0:02:39.4]} 11. O-O-O {[%clk
0:02:44.3]} 11... b5 {[%clk 0:01:56.8]} 12. e5 {[%clk 0:02:34.3]} 12... dxe5
{[%clk 0:01:48.8]} 13. fxe5 {[%clk 0:02:32.3]} 13... Nd5 {[%clk 0:01:45.2]} 14.
Nxd5 {[%clk 0:02:29.6]} 14... exd5 {[%clk 0:01:46.1]} 15. Nxc6 {[%clk
0:02:00.7]} 15... Bxc6 {[%clk 0:01:44]} 16. Qg3 {[%clk 0:02:00.7]} 16... g6
{[%clk 0:01:38.8]} 17. Bf4 {[%clk 0:01:38.3]} 17... Qa5 {[%clk 0:01:32.2]} 18.
Kb1 {[%clk 0:01:14.2]} 18... b4 {[%clk 0:01:27.2]} 19. axb4 {[%clk 0:01:05.5]}
19... Bxb4 {[%clk 0:01:28.1]} 20. e6 {[%clk 0:01:00.7]} 20... fxe6 {[%clk
0:01:25.8]} 21. Bd6 {[%clk 0:00:36.5]} 21... Kd7 {[%clk 0:01:13.4]} 22. Bxb4
{[%clk 0:00:29]} 22... Qxb4 {[%clk 0:01:14.3]} 23. Rhf1 {[%clk 0:00:28.7]} 23...
Rhf8 {[%clk 0:01:11.2]} 24. Qe5 {[%clk 0:00:18.7]} 24... Qe7 {[%clk 0:01:07.4]}
25. Rxf8 {[%clk 0:00:18.1]} 25... Rxf8 {[%clk 0:01:06.4]} 26. Bxa6 {[%clk
0:00:17.6]} 26... Rf5 {[%clk 0:01:04.3]} 27. Qb8 {[%clk 0:00:15.5]} 27... Qd8
{[%clk 0:01:04.1]} 28. Qxd8+ {[%clk 0:00:13.6]} 28... Kxd8 {[%clk 0:01:03.7]}
29. Be2 {[%clk 0:00:13.5]} 29... e5 {[%clk 0:01:01.2]} 30. Bf3 {[%clk
0:00:11.4]} 30... Ke7 {[%clk 0:00:59.7]} 31. Bxd5 {[%clk 0:00:11.2]} 31... Bxd5
{[%clk 0:00:59.3]} 32. Rxd5 {[%clk 0:00:11.2]} 32... Ke6 {[%clk 0:00:59.7]} 33.
Rd8 {[%clk 0:00:09.3]} 33... Rf2 {[%clk 0:00:58.8]} 34. c4 {[%clk 0:00:06.5]}
34... Rxg2 {[%clk 0:00:58.1]} 35. c5 {[%clk 0:00:06.7]} 35... Ke7 {[%clk
0:00:55.9]} 36. Rd5 {[%clk 0:00:05.5]} 36... Rxh2 {[%clk 0:00:49.6]} 37. c6
{[%clk 0:00:04.9]} 37... Rh4 {[%clk 0:00:50.2]} 38. Rd7+ {[%clk 0:00:02.2]}
38... Ke6 {[%clk 0:00:48.7]} 39. Rd8 {[%clk 0:00:02.4]} 39... Rc4 {[%clk
0:00:48]} 40. Rd7 {[%clk 0:00:02.3]} 40... h5 {[%clk 0:00:46.2]} 41. Rg7 {[%clk
0:00:02.4]} 41... Rxc6 {[%clk 0:00:45]} 42. Rxg6+ {[%clk 0:00:02.3]} 42... Kd5
{[%clk 0:00:45.5]} 43. Rg5 {[%clk 0:00:02.7]} 43... Rh6 {[%clk 0:00:45.9]} 44.
Rg3 {[%clk 0:00:01.5]} 44... h4 {[%clk 0:00:45.4]} 45. Rh3 {[%clk 0:00:02]}
45... Ke4 {[%clk 0:00:45.9]} 46. Kc2 {[%clk 0:00:01.9]} 46... Kf4 {[%clk
0:00:46.5]} 47. b4 {[%clk 0:00:02.1]} 47... Kg4 {[%clk 0:00:47]} 48. Rh1 {[%clk
0:00:01.9]} 48... h3 {[%clk 0:00:47.2]} 49. b5 {[%clk 0:00:02.3]} 49... Kf3
{[%clk 0:00:47.1]} 50. Kc3 {[%clk 0:00:01.4]} 50... Kg2 {[%clk 0:00:46.7]} 51.
Re1 {[%clk 0:00:01.5]} 51... h2 {[%clk 0:00:46.2]} 52. Re2+ {[%clk 0:00:01.2]}
52... Kf3 {[%clk 0:00:45.7]} 0-1

[Event "*** Titled Tuesday Blitz"]
[Site "Chess.com"]
[Date "2020.12.29"]
[Round "9"]
[White "Cambek64"]
[Black "Slovak_fighter2000"]
[Result "0-1"]
[WhiteElo "2323"]
[BlackElo "2488"]
[TimeControl "180+1"]
[EndTime "11:44:47 PST"]
[Termination "Slovak_fighter2000 won by checkmate"]

1. e4 {[%clk 0:02:42.5]} 1... e6 {[%clk 0:02:59.2]} 2. d4 {[%clk 0:02:41.9]}
2... d5 {[%clk 0:02:56]} 3. Nc3 {[%clk 0:02:42.2]} 3... Nf6 {[%clk 0:02:54.2]}
4. Bg5 {[%clk 0:02:38.3]} 4... Bb4 {[%clk 0:02:50.1]} 5. e5 {[%clk 0:02:38.2]}
5... h6 {[%clk 0:02:48.5]} 6. Bd2 {[%clk 0:02:36.5]} 6... Bxc3 {[%clk
0:02:46.5]} 7. bxc3 {[%clk 0:02:37.3]} 7... Ne4 {[%clk 0:02:46.5]} 8. Qg4 {[%clk
0:02:36.4]} 8... Kf8 {[%clk 0:02:38]} 9. Bd3 {[%clk 0:02:36]} 9... Nxd2 {[%clk
0:02:37.1]} 10. Kxd2 {[%clk 0:02:36.6]} 10... c5 {[%clk 0:02:37.1]} 11. h4
{[%clk 0:02:36.9]} 11... c4 {[%clk 0:02:36.9]} 12. Be2 {[%clk 0:02:35.2]} 12...
Nc6 {[%clk 0:02:37.5]} 13. Qf4 {[%clk 0:02:28.7]} 13... b5 {[%clk 0:02:35.7]}
14. a3 {[%clk 0:02:27.5]} 14... a5 {[%clk 0:02:35.2]} 15. Nf3 {[%clk 0:02:18.3]}
15... Bd7 {[%clk 0:02:28.1]} 16. Rhb1 {[%clk 0:02:08.5]} 16... Rb8 {[%clk
0:02:25.6]} 17. g4 {[%clk 0:02:06.9]} 17... Qe7 {[%clk 0:02:18.3]} 18. g5 {[%clk
0:01:53.1]} 18... b4 {[%clk 0:02:14.2]} 19. axb4 {[%clk 0:01:52]} 19... axb4
{[%clk 0:02:15.1]} 20. cxb4 {[%clk 0:01:50.6]} 20... Rxb4 {[%clk 0:02:04.7]} 21.
Ra8+ {[%clk 0:01:44.3]} 21... Be8 {[%clk 0:02:03]} 22. Rba1 {[%clk 0:01:26.5]}
22... Rb8 {[%clk 0:01:55.6]} 23. Qe3 {[%clk 0:01:22.5]} 23... Qb4+ {[%clk
0:01:49]} 24. Qc3 {[%clk 0:01:22.2]} 24... Qb7 {[%clk 0:01:43]} 25. Qa3+ {[%clk
0:01:18.1]} 25... Kg8 {[%clk 0:01:40.9]} 26. Rxb8 {[%clk 0:01:16.9]} 26... Qxb8
{[%clk 0:01:37.1]} 27. Qc5 {[%clk 0:01:07.9]} 27... hxg5 {[%clk 0:01:29]} 28.
hxg5 {[%clk 0:01:06.1]} 28... Qb2 {[%clk 0:01:07.5]} 29. Ra8 {[%clk 0:01:00.9]}
29... Kh7 {[%clk 0:01:01.7]} 30. Rc8 {[%clk 0:00:43.5]} 30... Nb4 {[%clk
0:00:46.5]} 31. Rb8 {[%clk 0:00:40.6]} 31... Qxc2+ {[%clk 0:00:43.1]} 32. Ke3
{[%clk 0:00:30.3]} 32... Qe4+ {[%clk 0:00:38.5]} 33. Kd2 {[%clk 0:00:29.9]}
33... Na2 {[%clk 0:00:29.9]} 34. Bd1 {[%clk 0:00:13.9]} 34... Qd3+ {[%clk
0:00:15.8]} 35. Ke1 {[%clk 0:00:12.5]} 35... Nc3 {[%clk 0:00:16.3]} 36. g6+
{[%clk 0:00:06.9]} 36... Kxg6 {[%clk 0:00:12.8]} 37. Ng1 {[%clk 0:00:04.8]}
37... Qxd1# {[%clk 0:00:11.7]} 0-1

[Event "*** Titled Tuesday Blitz"]
[Site "Chess.com"]
[Date "2020.12.29"]
[Round "9"]
[White "exoticprincess"]
[Black "DanielNaroditsky"]
[Result "0-1"]
[WhiteElo "2903"]
[BlackElo "3124"]
[TimeControl "180+1"]
[EndTime "11:44:49 PST"]
[Termination "DanielNaroditsky won by resignation"]

1. e4 {[%clk 0:03:00.9]} 1... g6 {[%clk 0:02:57.1]} 2. d4 {[%clk 0:03:00]} 2...
Bg7 {[%clk 0:02:50.5]} 3. Nc3 {[%clk 0:02:59.2]} 3... d6 {[%clk 0:02:51.1]} 4.
Be2 {[%clk 0:02:58.5]} 4... Nf6 {[%clk 0:02:51.2]} 5. h4 {[%clk 0:02:58]} 5...
h5 {[%clk 0:02:51]} 6. Nf3 {[%clk 0:02:56.9]} 6... Bg4 {[%clk 0:02:48.8]} 7. Ng5
{[%clk 0:02:56.3]} 7... Bxe2 {[%clk 0:02:48.9]} 8. Nxe2 {[%clk 0:02:57.2]} 8...
Nc6 {[%clk 0:02:42.1]} 9. O-O {[%clk 0:02:53.2]} 9... O-O {[%clk 0:02:32.4]} 10.
f3 {[%clk 0:02:47.7]} 10... Nh7 {[%clk 0:02:27.6]} 11. Be3 {[%clk 0:02:46.6]}
11... e6 {[%clk 0:02:20.6]} 12. Qd2 {[%clk 0:02:41.1]} 12... Nxg5 {[%clk
0:02:03.7]} 13. hxg5 {[%clk 0:02:39.5]} 13... e5 {[%clk 0:02:03.6]} 14. d5
{[%clk 0:02:34.2]} 14... Nd4 {[%clk 0:02:03.5]} 15. Nc1 {[%clk 0:02:27.6]} 15...
c6 {[%clk 0:01:56.5]} 16. c3 {[%clk 0:02:25]} 16... Nb5 {[%clk 0:01:56.9]} 17.
Rd1 {[%clk 0:02:13.6]} 17... c5 {[%clk 0:01:53.5]} 18. Ne2 {[%clk 0:02:10.2]}
18... Nc7 {[%clk 0:01:46.9]} 19. a4 {[%clk 0:02:09.4]} 19... f5 {[%clk
0:01:43.5]} 20. gxf6 {[%clk 0:02:09]} 20... Qxf6 {[%clk 0:01:43]} 21. b4 {[%clk
0:02:07.1]} 21... b6 {[%clk 0:01:42.6]} 22. a5 {[%clk 0:02:06.6]} 22... Qf7
{[%clk 0:01:41.4]} 23. c4 {[%clk 0:01:59.6]} 23... h4 {[%clk 0:01:39.2]} 24. Kh2
{[%clk 0:01:51.1]} 24... h3 {[%clk 0:01:27.8]} 25. Kxh3 {[%clk 0:01:48.9]} 25...
Qd7+ {[%clk 0:01:24.3]} 26. Kh2 {[%clk 0:01:48.3]} 26... Rae8 {[%clk 0:01:10.5]}
27. axb6 {[%clk 0:01:47.5]} 27... axb6 {[%clk 0:01:11.4]} 28. bxc5 {[%clk
0:01:47.5]} 28... bxc5 {[%clk 0:01:11.5]} 29. Ra7 {[%clk 0:01:46.6]} 29... Qd8
{[%clk 0:01:08.6]} 30. Kg1 {[%clk 0:01:42]} 30... Rf7 {[%clk 0:01:06.1]} 31. Rb1
{[%clk 0:01:37.3]} 31... Bf6 {[%clk 0:01:03.8]} 32. Rbb7 {[%clk 0:01:36]} 32...
Rh7 {[%clk 0:00:58.8]} 33. Qa5 {[%clk 0:01:33.8]} 33... Bg5 {[%clk 0:00:59.2]}
34. Bf2 {[%clk 0:01:28.7]} 34... Ree7 {[%clk 0:00:57.9]} 35. Qb6 {[%clk
0:01:23.4]} 35... Qf8 {[%clk 0:00:29.8]} 36. Rxc7 {[%clk 0:01:15.6]} 36... Rxc7
{[%clk 0:00:30]} 37. Qxc7 {[%clk 0:00:30]} 37... Rxc7 {[%clk 0:00:28.9]} 38.
Rxc7 {[%clk 0:00:30.9]} 38... Qb8 {[%clk 0:00:28]} 39. Rc6 {[%clk 0:00:31.1]}
39... Qb1+ {[%clk 0:00:27.5]} 40. Kh2 {[%clk 0:00:30.6]} 40... Qf1 {[%clk
0:00:24.7]} 41. Rxd6 {[%clk 0:00:29]} 41... Qxf2 {[%clk 0:00:24.1]} 42. Ng3
{[%clk 0:00:19.7]} 42... Kg7 {[%clk 0:00:16.2]} 43. Rd7+ {[%clk 0:00:17.4]}
43... Kh6 {[%clk 0:00:16.8]} 44. Kh3 {[%clk 0:00:15.1]} 44... Bf4 {[%clk
0:00:16.5]} 45. Nh1 {[%clk 0:00:14.9]} 45... Qe1 {[%clk 0:00:16.8]} 0-1

[Event "*** Titled Tuesday Blitz"]
[Site "Chess.com"]
[Date "2020.12.29"]
[Round "9"]
[White "Alomaterapia"]
[Black "olksuna"]
[Result "0-1"]
[WhiteElo "2512"]
[BlackElo "2647"]
[TimeControl "180+1"]
[EndTime "11:44:52 PST"]
[Termination "olksuna won on time"]

1. e4 {[%clk 0:03:00.9]} 1... d6 {[%clk 0:02:59.2]} 2. d4 {[%clk 0:02:59.8]}
2... Nf6 {[%clk 0:02:59.8]} 3. Nc3 {[%clk 0:02:59.9]} 3... c6 {[%clk 0:03:00.3]}
4. f4 {[%clk 0:02:55.8]} 4... Qa5 {[%clk 0:03:00.1]} 5. e5 {[%clk 0:02:37.7]}
5... Ne4 {[%clk 0:02:58]} 6. Bd2 {[%clk 0:02:34.6]} 6... Nxd2 {[%clk 0:02:52.1]}
7. Qxd2 {[%clk 0:02:35.5]} 7... Bf5 {[%clk 0:02:43]} 8. Nge2 {[%clk 0:02:27.1]}
8... h6 {[%clk 0:02:36.2]} 9. Ng3 {[%clk 0:02:23.8]} 9... Bh7 {[%clk 0:02:35]}
10. e6 {[%clk 0:02:17.4]} 10... fxe6 {[%clk 0:02:29.4]} 11. Bc4 {[%clk 0:02:17]}
11... d5 {[%clk 0:02:21.7]} 12. Bd3 {[%clk 0:02:17.3]} 12... g6 {[%clk
0:02:12.3]} 13. O-O {[%clk 0:02:10.3]} 13... Bg7 {[%clk 0:02:08.5]} 14. Qe3
{[%clk 0:01:49]} 14... Nd7 {[%clk 0:01:56.9]} 15. Nce2 {[%clk 0:01:42.7]} 15...
Nf8 {[%clk 0:01:50.1]} 16. c3 {[%clk 0:01:38.5]} 16... Bf6 {[%clk 0:01:38.1]}
17. a4 {[%clk 0:01:33.4]} 17... h5 {[%clk 0:01:37.5]} 18. b4 {[%clk 0:01:32.9]}
18... Qc7 {[%clk 0:01:36.9]} 19. Nh1 {[%clk 0:01:23.5]} 19... Qd6 {[%clk
0:01:23.9]} 20. Nf2 {[%clk 0:01:22.6]} 20... Rg8 {[%clk 0:01:05.5]} 21. Qf3
{[%clk 0:01:04.8]} 21... O-O-O {[%clk 0:01:02]} 22. b5 {[%clk 0:01:04.6]} 22...
c5 {[%clk 0:01:02.3]} 23. a5 {[%clk 0:01:01.6]} 23... c4 {[%clk 0:00:58.4]} 24.
Bb1 {[%clk 0:01:01.1]} 24... Rg7 {[%clk 0:00:51.5]} 25. a6 {[%clk 0:01:00.3]}
25... b6 {[%clk 0:00:50]} 26. Nh3 {[%clk 0:00:46.3]} 26... Bg8 {[%clk
0:00:43.2]} 27. Ra4 {[%clk 0:00:26.8]} 27... Qd7 {[%clk 0:00:25.3]} 28. Ba2
{[%clk 0:00:16.2]} 28... Kb8 {[%clk 0:00:22.8]} 29. Rb4 {[%clk 0:00:16]} 29...
Rc8 {[%clk 0:00:21.6]} 30. Ng5 {[%clk 0:00:14.8]} 30... Bf7 {[%clk 0:00:20.5]}
31. Qg3 {[%clk 0:00:14]} 31... Qd6 {[%clk 0:00:16.3]} 32. Kh1 {[%clk 0:00:12.2]}
32... Be8 {[%clk 0:00:16.6]} 33. Ng1 {[%clk 0:00:11.3]} 33... Bxg5 {[%clk
0:00:14.4]} 34. Qxg5 {[%clk 0:00:10.8]} 34... Rf7 {[%clk 0:00:14.6]} 35. g3
{[%clk 0:00:07.8]} 35... Rf5 {[%clk 0:00:14.7]} 36. Qh6 {[%clk 0:00:06.8]} 36...
Bd7 {[%clk 0:00:13.9]} 37. Bb1 {[%clk 0:00:05.2]} 37... Rf7 {[%clk 0:00:13.2]}
38. Bxg6 {[%clk 0:00:04.7]} 38... Rf6 {[%clk 0:00:13.7]} 39. Qxh5 {[%clk
0:00:04.8]} 39... Nxg6 {[%clk 0:00:13.6]} 40. Qg5 {[%clk 0:00:02.1]} 40... Rh8
{[%clk 0:00:13.1]} 41. h4 {[%clk 0:00:01.9]} 41... Be8 {[%clk 0:00:09.8]} 0-1